bitfinex-derivatives/quotes_ETHF0:USTF0_20210111
["timestamp","ask_amount","ask_price","bid_price","bid_amount"]
[1610359771423,1.7879,1143.1,1142.1,1.5518]
[1610359771624,1.7879,1143.1,1141.8,1.5093]
[1610359771823,3.5343,1143.1,1141.8,1.5093]
[1610359772022,1.7879,1143.1,1141.8,1.5093]
[1610359772824,4.00959,1142.9,1142.3,4.00959]
[1610359773023,1.7879,1143.1,1142.3,4.00959]
[1610359773623,1.7879,1143.1,1142.3,5.77019]
[1610359774025,1.7879,1143.1,1142.3,4.00959]
[1610359774227,1.6611,1143.5,1142.3,4.00959]
[1610359774823,1.6611,1143.5,1143.2,4.00959]
[1610359775025,1.6611,1143.5,1142.1,1.5663]
[1610359775223,1.6611,1143.5,1142.1,3.3198]
[1610359775424,1.7253,1143.8,1142.1,3.3198]
[1610359775625,73.9241,1144.2,1142.1,1.5663]
[1610359775823,73.9241,1144.2,1141.4,2.00568894]
[1610359776025,13.43793643,1144.1,1141.4,1.7891]
[1610359776224,13.43793643,1144.1,1141.2,0.21679145]
[1610359776424,11.69514879,1144.0,1141.2,0.21679145]
[1610359776825,4.00959,1142.9,1142.8,4.00959]
[1610359777025,7.95139,1142.9,1142.8,4.00959]
[1610359777227,7.95139,1142.9,1141.3,0.21676537]
[1610359777425,6.21479,1142.9,1141.3,0.21676537]
[1610359778127,2.2052,1142.9,1141.3,0.21676537]
[1610359778325,2.2052,1142.9,1141.4,0.21671369]
[1610359778524,1.9732,1143.2,1141.4,32.30361369]
[1610359778726,1.9732,1143.2,1141.6,0.21634564]
[1610359778926,1.9732,1143.2,1143.1,4.00959]
[1610359779328,1.9732,1143.2,1143.1,5.64679]
[1610359779528,4.00959,1144.1,1143.1,5.64679]
[1610359780730,5.75149,1144.1,1143.1,1.6372]
[1610359780930,4.00959,1143.2,1142.8,1.731]
[1610359781130,5.77289,1143.2,1142.8,1.731]
[1610359781332,5.77289,1143.2,1142.8,3.469]
[1610359781931,5.77289,1143.2,1142.8,1.731]
[1610359782133,5.77289,1143.2,1141.9,1.7349]
[1610359782333,5.77289,1143.2,1141.9,1.7372]
[1610359782532,5.77289,1143.2,1141.2,0.21723033]
[1610359782732,5.77289,1143.2,1140.9,0.21760864]
[1610359782932,1.7633,1143.2,1141.7,4.00959]
[1610359783533,1.7633,1143.2,1141.3,1.503]
[1610359784336,1.7633,1143.2,1140.7,0.21751821]
[1610359784737,1.7633,1143.2,1140.6,0.21770347]
[1610359784938,1.7633,1143.2,1140.9,4.00959]
[1610359785136,1.7633,1143.2,1140.5,0.21782138]
[1610359785336,13.46600139,1143.2,1140.4,2.35814811]
[1610359785736,11.70407109,1143.0,1140.4,2.1401]
[1610359785936,11.7057296,1142.8,1140.4,1.6929]
[1610359786136,11.70739296,1142.6,1140.4,1.6929]
[1610359786337,13.82949296,1142.6,1140.4,1.6929]
[1610359786541,13.82949296,1142.6,1140.1,1.7477]
[1610359786542,11.70784342,1142.5,1140.1,1.7477]
[1610359786939,4.00959,1140.2,1140.1,1.7477]
[1610359787137,4.00959,1140.2,1139.8,4.00959]
[1610359787540,4.00959,1140.2,1139.6,0.21855045]
[1610359787937,4.00959,1140.2,1139.5,0.43710091]
[1610359787938,4.00959,1140.2,1139.5,0.2185765]
[1610359788138,4.00959,1140.2,1139.3,0.21879197]
[1610359788538,4.00959,1140.2,1139.0,0.21902053]
[1610359788740,5.96089,1140.2,1138.8,0.6570616]
[1610359788940,1.9513,1140.2,1138.9,0.21912571]
[1610359789141,1.9513,1140.2,1138.9,1.6415]
[1610359789341,1.9513,1140.2,1138.8,2.343]
[1610359789544,1.9513,1140.2,1138.8,1.907]
[1610359789741,1.9513,1140.2,1138.8,1.735]
[1610359789943,1.9513,1140.2,1138.8,1.5628]
[1610359790543,1.9513,1140.2,1138.1,0.87703548]
[1610359790942,1.9513,1140.2,1138.3,0.8749432]
[1610359791149,1.9513,1140.2,1138.5,0.8735597]
[1610359792146,1.9513,1140.2,1138.8,0.87151893]
[1610359792343,2.447,1140.5,1138.8,0.87151893]
[1610359792544,2.447,1140.5,1138.8,2.66271893]
[1610359792945,2.447,1140.5,1140.3,4.00959]
[1610359793146,5.9095,1141.5,1140.3,4.00959]
[1610359793748,5.9095,1141.5,1140.3,5.67699]
[1610359794246,5.9095,1141.5,1140.3,1.6674]
[1610359794946,4.00959,1141.2,1140.3,1.6674]
[1610359796151,5.74239,1141.2,1140.3,1.6674]
[1610359796949,1.7328,1141.2,1140.5,4.00959]
[1610359797150,1.7328,1141.2,1139.9,2.3893]
[1610359798349,1.7328,1141.2,1139.5,2.1265]
[1610359798550,1.7328,1141.2,1139.3,0.86943952]
[1610359798755,1.7328,1141.2,1139.0,0.87068689]
[1610359798955,4.00959,1139.3,1139.0,0.43578312]
[1610359799355,1.7498,1140.4,1138.9,0.21817081]
[1610359799551,2.1842,1140.5,1138.9,1.99187081]
[1610359800152,2.1842,1140.5,1139.1,0.21784683]
[1610359800353,2.1842,1140.5,1139.2,0.21765411]
[1610359800952,4.00959,1139.9,1139.2,0.21765411]
[1610359801353,4.00959,1139.9,1139.1,1.8576]
[1610359801753,4.00959,1139.9,1139.1,2.07561094]
[1610359802153,1.7287,1140.2,1139.1,2.07561094]
[1610359802354,2.1842,1140.5,1139.1,2.07561094]
[1610359802652,2.1842,1140.5,1139.2,0.21807921]
[1610359802852,1.7501,1140.9,1139.2,0.21807921]
[1610359803055,4.00959,1140.6,1139.3,0.21778259]
[1610359803255,5.75399,1140.6,1139.3,0.21778259]
[1610359803658,5.75399,1140.6,1139.2,0.21787613]
[1610359804054,5.75399,1140.6,1139.1,1.8576]
[1610359804959,1.7444,1140.6,1139.1,1.8576]
[1610359805157,4.00959,1139.2,1139.1,1.8576]
[1610359805357,4.00959,1139.2,1138.8,1.7912]
[1610359805759,4.00959,1139.2,1138.6,0.21877782]
[1610359805957,1.8687,1140.2,1138.6,0.21877782]
[1610359806158,1.8687,1140.2,1138.6,1.71227782]
[1610359807058,4.00959,1139.7,1139.4,4.00959]
[1610359808061,4.00959,1139.7,1138.8,0.21877712]
[1610359808461,1.8687,1140.2,1138.8,0.21877712]
[1610359808862,1.8687,1140.2,1138.9,0.21890363]
[1610359809061,8.0479,1141.1,1139.7,4.00959]
[1610359809462,8.0479,1141.1,1139.6,1.6599]
[1610359810462,8.0479,1141.1,1139.6,1.2475]
[1610359811062,4.00959,1139.7,1139.3,1.7771]
[1610359812263,5.75429,1139.7,1139.3,1.7771]
[1610359813063,4.00959,1139.4,1139.3,1.7771]
[1610359813263,5.79099,1139.4,1138.9,2.4062]
[1610359813464,4.00959,1139.4,1138.9,1.2482]
[1610359814067,1.9275,1140.0,1138.6,1.71378457]
[1610359814467,11.8394,1140.2,1138.7,0.22028435]
[1610359814669,5.9088,1140.2,1138.8,0.22021379]
[1610359815168,4.00959,1139.7,1139.5,4.00959]
[1610359815968,4.00959,1139.7,1138.9,0.22025822]
[1610359816368,5.77439,1139.7,1138.8,0.22027686]
[1610359816668,5.77439,1139.7,1138.7,0.22043795]
[1610359817073,4.00959,1139.0,1138.7,4.23002795]
[1610359818173,5.74329,1139.0,1138.7,4.00959]
[1610359818773,4.00959,1139.0,1138.7,4.00959]
[1610359818973,4.00959,1139.0,1138.6,1.71413743]
[1610359819174,4.00959,1138.8,1138.6,1.71413743]
[1610359819373,4.00959,1138.8,1138.6,1.4935]
[1610359819574,4.00959,1138.8,1138.4,0.22115196]
[1610359819774,4.00959,1138.8,1138.1,63.19412552]
[1610359820275,5.78629,1138.8,1138.1,63.19412552]
[1610359820476,4.00959,1138.8,1138.1,63.19412552]
[1610359820873,4.00959,1138.8,1138.1,0.22152552]
[1610359821075,4.00959,1138.2,1138.1,0.22152552]
[1610359821475,4.00959,1138.2,1138.0,4.23136097]
[1610359822078,4.00959,1138.2,1138.0,0.22177097]
[1610359822474,3.2908,1138.8,1138.0,0.22177097]
[1610359823676,3.2908,1138.8,1137.9,0.22204694]
[1610359824478,1.5517,1138.8,1137.9,0.22204694]
[1610359825078,4.00959,1138.0,1137.9,4.23163694]
[1610359826281,1.5517,1138.8,1137.9,4.23163694]
[1610359826480,73.8634,1139.0,1137.9,4.23163694]
[1610359826682,72.0982,1139.0,1138.0,0.22224061]
[1610359826880,72.0982,1139.0,1137.9,4.45407121]
[1610359826881,72.0982,1139.0,1138.1,0.22208822]
[1610359827080,76.10779,1139.0,1138.6,4.00959]
[1610359827480,76.10779,1139.0,1138.4,2.2564]
[1610359827680,77.86069,1139.0,1138.4,2.2564]
[1610359828082,76.10779,1139.0,1138.4,2.2564]
[1610359829082,4.00959,1138.5,1138.1,1.8574]
[1610359830284,5.77569,1138.5,1138.1,1.8574]
[1610359830702,5.77569,1138.5,1137.9,0.22307151]
[1610359830887,5.77569,1138.5,1137.8,2.66614303]
[1610359830888,5.77569,1138.5,1137.8,2.22]
[1610359831083,4.00959,1137.9,1137.6,0.44676071]
[1610359831287,5.78989,1137.9,1137.5,0.44705491]
[1610359831484,5.78989,1137.9,1137.3,4.90369982]
[1610359831485,5.78989,1137.9,1137.3,0.44759696]
[1610359831885,5.78989,1137.9,1137.2,0.44788245]
[1610359832989,5.78989,1137.9,1137.1,0.44860816]
[1610359833189,4.00959,1137.3,1137.1,0.44860816]
[1610359833588,4.00959,1137.3,1136.8,5.714e-05]
[1610359833789,4.00959,1137.3,1137.0,0.44924562]
[1610359833988,4.00959,1137.3,1136.9,0.44965757]
[1610359835089,4.00959,1137.3,1136.7,2.79623794]
[1610359835090,4.00959,1137.1,1136.8,4.45931137]
[1610359835488,4.00959,1137.1,1136.8,4.00959]
[1610359835688,4.00959,1137.1,1136.7,2.57211638]
[1610359836089,4.00959,1137.1,1136.8,0.44998044]
[1610359837388,2.46,1137.7,1136.9,0.44969457]
[1610359837589,2.3698,1138.0,1136.9,0.44969457]
[1610359837789,5.7856,1139.5,1137.1,2.8248]
[1610359837990,6.0655,1139.4,1137.2,0.44877797]
[1610359838189,2.4622,1138.7,1137.7,2.1752]
[1610359838590,1.7472,1139.0,1137.7,2.1752]
[1610359838792,1.7483,1139.5,1137.7,2.1752]
[1610359838989,6.2735,1140.1,1137.7,2.1752]
[1610359839189,4.00959,1138.7,1138.5,4.00959]
[1610359839389,1.7725,1139.3,1138.5,4.00959]
[1610359840390,1.7355,1140.1,1138.5,4.00959]
[1610359840588,5.9162,1140.6,1138.5,4.00959]
[1610359840790,5.9162,1140.6,1138.5,4.45363904]
[1610359841192,5.9162,1140.6,1139.0,4.00959]
[1610359843092,4.00959,1140.2,1139.8,4.00959]
[1610359843694,1.7188,1140.6,1139.8,4.00959]
[1610359844492,1.7188,1140.6,1139.7,1.8633]
[1610359845096,4.00959,1140.4,1139.7,5.87289]
[1610359845698,3.4562,1140.6,1139.7,5.87289]
[1610359845899,1.7188,1140.6,1139.7,5.87289]
[1610359846399,1.7188,1140.6,1139.7,7.64049]
[1610359846597,1.7188,1140.6,1139.7,5.87289]
[1610359846798,2.4609,1140.6,1139.7,5.87289]
[1610359847199,4.00959,1140.5,1139.7,1.8633]
[1610359847600,4.00959,1140.5,1139.7,3.6193]
[1610359847801,4.00959,1140.5,1139.7,1.8633]
[1610359849102,4.00959,1140.5,1140.1,4.00959]
[1610359849502,2.2145,1141.0,1140.1,4.00959]
[1610359851204,2.2145,1141.0,1140.9,4.00959]
[1610359851803,57.726,1141.3,1140.9,4.00959]
[1610359852203,57.726,1141.3,1140.9,5.65979]
[1610359853205,57.726,1141.3,1141.2,4.00959]
[1610359853406,57.726,1141.3,1141.2,5.62509]
[1610359855507,6.1969,1142.8,1141.2,5.62509]
[1610359855707,7.8721,1143.1,1141.2,5.62509]
[1610359855908,6.1088,1143.1,1141.2,5.62509]
[1610359856307,1.7543,1143.3,1141.2,35.62509]
[1610359856510,21.27053328,1143.6,1141.2,35.62509]
[1610359856708,27.20432115,1143.7,1141.2,35.62509]
[1610359857009,5.9399,1143.7,1141.2,5.62509]
[1610359857208,4.00959,1142.2,1141.6,4.00959]
[1610359857511,4.00959,1142.2,1141.2,1.6155]
[1610359858108,5.60489,1142.2,1141.2,1.6155]
[1610359858508,5.60489,1142.2,1140.9,1.6502]
[1610359858710,5.60489,1142.2,1140.6,1.8933]
[1610359858910,5.60489,1142.2,1140.5,0.21877063]
[1610359859112,3.3359,1142.2,1140.8,4.00959]
[1610359859310,3.3359,1142.2,1140.8,6.24689]
[1610359860810,1.5953,1142.2,1140.8,6.24689]
[1610359861112,1.5953,1142.2,1140.8,8.00159]
[1610359861312,4.00959,1141.4,1141.1,4.00959]
[1610359862911,4.00959,1141.4,1140.8,2.2373]
[1610359863312,4.00959,1140.9,1140.8,2.2373]
[1610359863512,4.00959,1140.9,1140.2,1.99811497]
[1610359863712,4.00959,1140.9,1140.2,1.7787]
[1610359863912,4.00959,1140.9,1140.0,0.21960963]
[1610359864513,1.64,1141.8,1139.8,0.21988848]
[1610359864712,6.1104,1141.7,1139.8,2.06658848]
[1610359864911,6.1104,1141.7,1139.9,30.0]
[1610359865113,6.1104,1141.7,1140.0,0.21965264]
[1610359865314,6.1104,1141.7,1140.6,4.00959]
[1610359865512,6.1104,1141.7,1140.6,5.72219]
[1610359866513,6.1104,1141.7,1140.6,1.7126]
[1610359867314,4.00959,1140.7,1140.6,1.7126]
[1610359869115,1.7478,1141.1,1140.6,1.7126]
[1610359869315,4.00959,1141.0,1140.6,1.7126]
[1610359870715,4.00959,1141.0,1140.5,4.00959]
[1610359871316,4.00959,1141.0,1140.9,4.00959]
[1610359871516,4.00959,1141.0,1140.9,5.75849]
[1610359872018,62.8051,1141.4,1140.9,5.75849]
[1610359873216,4.00959,1141.1,1140.9,1.7489]
[1610359873816,4.00959,1141.1,1140.9,0.644]
[1610359874016,4.00959,1141.1,1139.8,1.8467]
[1610359874216,4.00959,1141.1,1139.6,0.21984422]
[1610359874818,4.00959,1141.1,1139.4,59.95360535]
[1610359875218,13.4085,1141.3,1139.4,59.7335]
[1610359875417,13.4085,1141.3,1139.4,61.7313]
[1610359877320,4.00959,1140.1,1139.9,4.00959]
[1610359877721,1.751,1141.0,1139.9,4.00959]
[1610359878323,13.4085,1141.3,1139.9,4.00959]
[1610359878924,11.6671,1141.3,1139.9,6.39089]
[1610359879326,11.6671,1141.3,1140.8,4.00959]
[1610359879525,11.6671,1141.3,1140.8,6.48759]
[1610359879727,5.8147,1141.3,1140.8,6.48759]
[1610359879925,58.7326,1141.6,1140.8,2.478]
[1610359880325,60.4859,1141.6,1140.8,2.478]
[1610359880926,58.7326,1141.6,1140.8,2.478]
[1610359881326,4.00959,1140.9,1140.8,2.478]
[1610359883227,4.00959,1140.9,1140.8,6.48759]
[1610359883427,4.00959,1140.9,1140.8,2.478]
[1610359884527,4.00959,1140.9,1139.9,32.3813]
[1610359884929,4.00959,1140.9,1139.9,2.3813]
[1610359885128,4.00959,1140.9,1139.7,0.21680974]
[1610359885328,4.00959,1140.9,1140.5,4.00959]
[1610359885528,4.00959,1140.9,1140.5,6.33249]
[1610359887331,72.4422,1141.7,1140.8,4.00959]
[1610359887530,72.4422,1141.7,1140.8,5.89439]
[1610359888930,72.4422,1141.7,1140.8,1.8848]
[1610359889331,4.00959,1140.9,1140.8,1.8848]
[1610359891734,5.76519,1140.9,1140.8,1.1584]
[1610359892136,5.76519,1140.9,1139.8,64.9567]
[1610359893339,4.00959,1139.9,1139.4,1.9013]
[1610359893538,4.00959,1139.9,1139.4,0.3831]
[1610359893737,4.00959,1139.9,1138.8,49.8453]
[1610359895340,4.00959,1138.9,1138.8,49.8453]
[1610359895939,1.7714,1140.0,1138.8,49.8453]
[1610359896139,54.4465,1140.1,1138.8,1.9594]
[1610359896340,54.4465,1140.1,1139.9,5.0]
[1610359897341,4.00959,1140.0,1139.9,5.0]
[1610359897541,5.76519,1140.0,1139.9,5.0]
[1610359897741,4.00959,1140.0,1139.9,3.1925]
[1610359898342,4.00959,1140.0,1139.9,1.276]
[1610359898576,4.00959,1140.0,1139.9,0.806]
[1610359898757,4.00959,1140.0,1139.3,1.8022]
[1610359898942,5.74579,1140.0,1139.3,1.8022]
[1610359899346,4.00959,1139.4,1139.3,1.8022]
[1610359899942,4.00959,1139.4,1138.9,64.1559]
[1610359901345,4.00959,1139.1,1138.9,68.16549]
[1610359901545,1.7395,1139.6,1138.9,68.16549]
[1610359901745,1.7362,1140.0,1138.9,68.16549]
[1610359902246,1.7362,1140.0,1138.9,64.1559]
[1610359903245,4.00959,1139.0,1138.9,68.16549]
[1610359904246,4.00959,1139.0,1138.9,64.1559]
[1610359905151,1.8445,1140.2,1138.9,64.1559]
[1610359905348,22.87604955,1141.0,1138.9,68.16549]
[1610359905349,4.00959,1139.3,1138.9,68.16549]
[1610359905550,4.00959,1139.3,1138.9,4.00959]
[1610359907251,1.8543,1140.2,1139.1,4.00959]
[1610359907657,1.8543,1140.2,1139.1,5.77319]
[1610359908262,68.9253,1140.4,1139.1,5.77319]
[1610359908665,68.9253,1140.4,1140.2,2.972]
[1610359908859,1.5581,1141.0,1140.2,2.972]
[1610359909258,1.7332,1141.3,1140.2,2.972]
[1610359909465,12.0659,1141.5,1140.2,2.972]
[1610359909872,6.0849,1141.5,1140.2,32.972]
[1610359910069,1.7269,1141.9,1140.2,32.972]
[1610359910261,27.00600716,1142.3,1140.2,32.972]
[1610359910758,15.2928554,1142.3,1140.2,32.972]
[1610359910957,5.7084,1142.3,1140.2,32.972]
[1610359911357,4.00959,1141.7,1141.5,4.00959]
[1610359912158,5.78379,1141.7,1140.2,32.972]
[1610359912559,5.78379,1141.7,1140.2,2.972]
[1610359913159,7.40299,1141.7,1140.2,2.972]
[1610359913361,4.00959,1140.4,1140.2,6.98159]
[1610359913562,1.7534,1141.1,1140.2,6.98159]
[1610359913960,1.7604,1141.6,1140.2,36.98159]
[1610359914161,1.6192,1141.7,1140.2,36.98159]
[1610359915161,1.6192,1141.7,1140.3,30.0]
[1610359915361,1.6192,1141.7,1140.6,4.00959]
[1610359915561,72.1153,1142.0,1140.6,5.79799]
[1610359917363,4.00959,1141.4,1141.1,4.00959]
[1610359919467,4.00959,1141.2,1141.1,4.00959]
[1610359919967,4.00959,1141.2,1140.6,1.7884]
[1610359920167,1.757,1141.9,1140.6,1.7884]
[1610359920570,72.1153,1142.0,1140.3,30.0]
[1610359920969,72.1153,1142.0,1140.2,2.972]
[1610359921369,4.00959,1140.5,1140.2,2.972]
[1610359922169,4.00959,1140.5,1140.2,1.927]
[1610359922369,4.00959,1140.5,1140.2,1.2264]
[1610359922569,4.00959,1140.5,1140.2,0.444]
[1610359922969,4.00959,1140.5,1140.2,0.2535]
[1610359923172,4.00959,1140.5,1139.6,59.8287]
[1610359923376,4.00959,1139.7,1139.1,65.3283]
[1610359924372,4.00959,1139.7,1139.1,1.7636]
[1610359924572,4.00959,1139.7,1138.4,0.21797857]
[1610359924778,4.00959,1139.7,1138.4,1.97617857]
[1610359924972,4.00959,1139.7,1138.4,0.21797857]
[1610359925172,51.2068,1140.0,1138.5,0.21807145]
[1610359925374,51.2068,1140.0,1139.8,4.00959]
[1610359925974,51.2068,1140.0,1139.7,2.1634]
[1610359927376,51.2068,1140.0,1139.9,4.00959]
[1610359928376,2.331,1140.7,1139.9,4.00959]
[1610359928578,64.1215,1140.9,1139.9,4.00959]
[1610359929478,64.1215,1140.9,1140.7,4.00959]
[1610359929879,64.1215,1140.9,1140.7,5.68749]
[1610359930080,5.7349,1142.2,1140.7,5.68749]
[1610359930279,7.4895,1142.2,1140.7,5.68749]
[1610359930480,7.4895,1142.2,1140.7,35.68749]
[1610359931083,5.7349,1142.2,1140.7,35.68749]
[1610359931480,5.7349,1142.2,1141.8,4.00959]
[1610359931680,5.8322,1142.5,1141.8,4.00959]
[1610359932081,5.8322,1142.5,1140.7,1.6779]
[1610359932281,7.6631,1142.5,1140.7,1.6779]
[1610359933482,4.00959,1140.9,1140.8,4.00959]
[1610359933683,1.743,1141.8,1140.8,4.00959]
[1610359933884,2.4834,1141.9,1140.8,4.00959]
[1610359934089,2.4834,1141.9,1140.7,1.6779]
[1610359934885,4.2132,1141.9,1140.4,2.1654]
[1610359935083,4.2132,1141.9,1140.1,65.0782]
[1610359935491,4.2132,1141.9,1140.5,4.00959]
[1610359935682,4.2132,1141.9,1140.5,6.18329]
[1610359937483,4.2132,1141.9,1140.9,4.00959]
[1610359937883,4.2132,1141.9,1140.5,2.1737]
[1610359939585,4.00959,1140.6,1140.5,2.1737]
[1610359941089,4.00959,1140.6,1140.2,4.00959]
[1610359941491,4.00959,1140.6,1140.4,4.00959]
[1610359942492,4.00959,1140.6,1140.2,1.9481]
[1610359943494,4.00959,1140.3,1140.2,1.9481]
[1610359946196,4.00959,1140.3,1139.7,2.1634]
[1610359946396,4.00959,1140.3,1139.7,30.0]
[1610359947599,4.00959,1139.8,1139.7,34.00959]
[1610359947800,4.00959,1139.8,1139.5,53.1444]
[1610359949610,4.00959,1139.6,1139.5,53.1444]
[1610359950803,4.00959,1139.6,1138.9,67.4581]
[1610359951604,4.00959,1139.0,1138.9,67.4581]
[1610359952404,4.00959,1139.0,1138.9,66.6241]
[1610359952605,4.00959,1139.0,1138.5,5.64839]
[1610359953604,4.00959,1138.6,1138.5,5.64839]
[1610359955107,4.00959,1138.6,1138.5,1.6388]
[1610359955306,4.00959,1138.6,1138.2,66.0636]
[1610359955706,1.6985,1139.3,1138.3,4.00959]
[1610359956106,1.6985,1139.3,1138.3,35.95319]
[1610359957310,0.1003,1139.3,1138.3,5.95319]
[1610359957608,0.1003,1139.3,1138.3,1.9436]
[1610359958012,1.746,1139.4,1138.3,1.9436]
[1610359959709,60.0685,1139.7,1138.3,1.9436]
[1610359959912,60.0685,1139.7,1138.3,31.9436]
[1610359960311,60.0685,1139.7,1139.4,3.4018]
[1610359960913,61.8348,1139.7,1139.4,3.4018]
[1610359961113,60.0685,1139.7,1139.4,3.4018]
[1610359961613,4.00959,1139.5,1139.4,3.4018]
[1610359963215,4.00959,1139.5,1139.4,2.8052]
[1610359965619,4.00959,1139.5,1139.4,6.81479]
[1610359965818,4.00959,1139.5,1139.4,2.8052]
[1610359967519,1.5484,1140.0,1139.4,2.8052]
[1610359967721,4.00959,1139.9,1139.7,4.00959]
[1610359967919,1.4923,1140.3,1139.7,4.00959]
[1610359968119,1.7358,1140.9,1139.7,4.00959]
[1610359968720,1.7358,1140.9,1139.4,2.8052]
[1610359968920,3.9395,1140.9,1139.4,2.8052]
[1610359969621,3.9395,1140.9,1139.7,4.00959]
[1610359969821,2.2037,1140.9,1139.7,4.00959]
[1610359970623,2.2037,1140.9,1139.4,2.8052]
[1610359970823,3.938,1140.9,1139.4,2.8052]
[1610359971624,4.00959,1139.5,1139.4,2.8052]
[1610359974927,4.00959,1139.5,1138.3,1.9436]
[1610359975127,4.00959,1139.5,1138.1,4.00959]
[1610359975629,4.00959,1138.3,1138.1,4.00959]
[1610359977430,1.8175,1139.3,1138.1,4.00959]
[1610359977632,4.00959,1138.9,1138.7,4.00959]
[1610359977839,1.8175,1139.3,1138.7,4.00959]
[1610359978036,5.8712,1139.6,1138.7,6.29429]
[1610359979631,4.00959,1138.8,1138.7,6.29429]
[1610359979832,4.00959,1138.8,1138.7,2.2847]
[1610359981533,4.00959,1138.8,1138.1,74.8961]
[1610359981733,1.7588,1139.1,1138.1,74.8961]
[1610359981734,4.00959,1138.2,1138.1,74.8961]
[1610359983137,4.00959,1138.2,1137.6,60.6914]
[1610359983739,4.00959,1137.7,1137.6,60.6914]
[1610359983937,4.00959,1137.7,1137.5,4.00959]
[1610359984137,4.00959,1137.7,1137.0,0.21772549]
[1610359984337,4.00959,1137.7,1136.9,67.14523602]
[1610359984738,4.00959,1137.7,1136.9,66.9273]
[1610359984937,6.22899,1137.7,1136.9,66.9273]
[1610359985738,2.2194,1137.7,1136.9,66.9273]
[1610359986238,2.2194,1137.7,1136.7,4.00959]
[1610359987540,2.2194,1137.7,1136.3,56.44976685]
[1610359987738,4.00959,1136.6,1136.5,4.00959]
[1610359988341,73.5016,1137.5,1136.5,4.00959]
[1610359988540,73.5016,1137.5,1136.5,5.63929]
[1610359988941,75.2652,1137.5,1136.5,5.63929]
[1610359989140,73.5016,1137.5,1136.5,5.63929]
[1610359989742,4.00959,1137.0,1136.8,4.00959]
[1610359990342,4.00959,1137.0,1136.5,1.6297]
[1610359990541,4.00959,1137.0,1136.5,3.3818]
[1610359991542,4.00959,1137.0,1136.5,1.6297]
[1610359991743,4.00959,1136.6,1136.5,1.6297]
[1610359992543,4.00959,1136.6,1136.5,1.7649]
[1610359992943,4.00959,1136.6,1135.8,58.2395]
[1610359993345,5.74789,1136.6,1135.8,58.2395]
[1610359993546,4.00959,1136.6,1135.8,58.2395]
[1610359993744,1.9126,1137.0,1136.0,4.00959]
[1610359993944,1.9126,1137.0,1136.0,5.98779]
[1610359994143,8.1302,1137.4,1136.0,7.72499]
[1610359994945,8.1302,1137.4,1136.0,5.98779]
[1610359995645,4.00959,1136.6,1136.0,5.98779]
[1610359996246,5.78549,1136.6,1136.0,5.98779]
[1610359996446,4.00959,1136.6,1136.0,5.98779]
[1610359997448,4.00959,1136.6,1136.0,1.9782]
[1610359997648,1.7385,1137.0,1136.0,1.9782]
[1610359997649,4.00959,1136.1,1136.0,1.9782]
[1610359998748,4.00959,1136.1,1136.0,3.717]
[1610360000048,4.00959,1136.1,1136.0,1.9782]
[1610360000249,4.00959,1136.1,1135.4,70.2663579]
[1610360001250,4.00959,1136.1,1135.4,72.0100579]
[1610360001450,4.00959,1136.1,1135.4,70.2663579]
[1610360001650,4.00959,1135.7,1135.4,70.047]
[1610360002751,4.00959,1135.7,1135.4,70.26666887]
[1610360003753,4.00959,1135.5,1135.4,70.047]
[1610360004754,4.00959,1135.5,1135.4,71.8216]
[1610360005455,4.00959,1135.5,1135.4,70.047]
[1610360005659,4.00959,1135.5,1135.2,0.22048841]
[1610360006058,4.00959,1135.5,1135.1,0.22051498]
[1610360006455,5.75149,1135.5,1135.1,1.97721498]
[1610360006855,5.75149,1135.5,1135.1,0.22051498]
[1610360007055,5.75149,1135.5,1135.0,0.22068881]
[1610360007056,4.00959,1135.5,1135.0,0.22068881]
[1610360007657,4.00959,1135.5,1135.0,4.23027881]
[1610360007855,4.00959,1135.5,1135.0,0.22068881]
[1610360008055,4.00959,1135.5,1135.1,0.22058957]
[1610360008456,4.00959,1135.5,1135.1,2.1176]
[1610360008658,5.79519,1135.5,1135.1,3.8717]
[1610360008856,4.00959,1135.5,1135.1,2.1176]
[1610360009756,4.00959,1135.3,1135.1,2.1176]
[1610360009956,4.00959,1135.3,1135.1,3.8675]
[1610360010156,1.7827,1135.5,1135.1,3.8675]
[1610360010456,52.7636,1136.1,1135.1,4.08806765]
[1610360010859,52.7636,1136.1,1135.2,0.22052997]
[1610360011060,52.7636,1136.1,1135.3,0.22038475]
[1610360011860,4.00959,1135.9,1135.3,0.22038475]
[1610360012061,4.00959,1135.9,1135.2,0.22052969]
[1610360012762,4.00959,1135.9,1135.3,0.22035778]
[1610360013162,4.00959,1135.9,1135.2,0.22041564]
[1610360013362,4.00959,1135.9,1135.3,0.2203912]
[1610360013763,4.00959,1135.6,1135.3,4.2299812]
[1610360013963,52.7636,1136.1,1135.3,4.2299812]
[1610360014563,52.7636,1136.1,1135.1,2.44918991]
[1610360015163,52.7636,1136.1,1135.1,1.78822468]
[1610360015363,52.7636,1136.1,1135.0,0.66059945]
[1610360015862,52.7636,1136.1,1135.1,4.00959]
[1610360016867,52.7636,1136.1,1135.1,6.22999]
[1610360017067,52.7636,1136.1,1135.1,7.99519]
[1610360017267,52.7636,1136.1,1135.1,8.65570431]
[1610360017467,52.7636,1136.1,1135.1,6.89050431]
[1610360017766,52.7636,1136.1,1135.7,4.00959]
[1610360017767,4.00959,1135.8,1135.7,4.00959]
[1610360018166,54.5674,1136.7,1135.7,4.00959]
[1610360018367,1.781,1136.5,1135.7,4.00959]
[1610360018768,54.5674,1136.7,1135.8,4.9999]
[1610360018967,54.5674,1136.7,1135.8,6.768]